[Event "Romanian Championship 2024"]
[Site "Eforie Nord"]
[Date "2024.03.01"]
[Round "8.5"]
[White "Ilinca, Felix-Antonio"]
[Black "Magold, Filip"]
[Result "0-1"]
[ECO "B53"]
[WhiteElo "2415"]
[BlackElo "2400"]
[Annotator "TA"]
[PlyCount "116"]
[EventDate "2024.02.24"]
[EventType "swiss"]
[EventCountry "ROU"]
[SourceTitle "playchess.com"]
[Source "ChessBase"]
[SourceQuality "1"]
[TimeControl "40/5400+30:900+30"]

{[%evp 36,116,49,52,63,76,64,12,10,-2,-11,-16,-12,-16,-14,-17,-20,-77,-64,-101,-37,-39,0,-106,-95,-151,-141,-177,-193,-177,-178,-189,-222,-202,-217,-216,-203,-229,-102,-96,0,-212,-227,-210,-210,-208,-212,-204,-216,-287,-242,-435,-379,-350,-297,-293,-226,-235,-218,-231,-197,-425,-442,-449,-449,-4952,-4952,-29968,-29969,-29968,-29969,-29973,-29974,-29974,-29973,-29974,-29976,-29975,-29975,-29976,-29976,-29982,-29976]} 1. e4 {[%emt 0:00:12]} c5 {[%emt 0:00:14]} 2. Nf3 {[%emt 0:00:20]} d6 {[%emt 0:00:05]} 3. d4 {[%emt 0:00:17]} Nf6 {[%emt 0:00:04]} 4. dxc5 {[%emt 0:00:24]} Nxe4 {[%emt 0:00:07]} 5. cxd6 {[%emt 0:00:24]} Nc6 {[%emt 0:00:05]} 6. Be3 {[%emt 0:00:28] B53: Sicilian: 2...d6: Lines with Qxd4.} Nxd6 {[%emt 0:05:11]} 7. Nc3 {[%emt 0:00:22]} Bf5 {[%emt 0:03:34]} 8. Nd4 {[%emt 0:06:35]} e5 {[%emt 0:05:10]} 9. Nxc6 {[%emt 0:05:33]} bxc6 {[%emt 0:00:05]} 10. Qf3 {[%emt 0:01:44]} Qc8 $146 {[%emt 0:14:24]} ({Predecessor:} 10... Qd7 11. Bc5 Rd8 12. Qe3 Qe6 13. O-O-O Be7 14. Bxd6 Rxd6 15. Rxd6 Qxd6 16. Bd3 Bxd3 {½-½ Bajarani,U (2392)-Ter Sahakyan,S (2504) Akhisar Manisa ol U16 2009 (8)}) 11. Qg3 {[%emt 0:05:31]} Qe6 {[%emt 0:01:47]} 12. O-O-O {[%emt 0:00:34]} Bg6 {[%emt 0:01:29]} 13. h4 {[%emt 0:04:35]} Nf5 {[%emt 0:06:13]} 14. Qh3 {[%emt 0:09:35]} h5 {[%emt 0:11:35]} 15. a3 {[%emt 0:07:16]} Be7 {[%emt 0:04:48]} 16. Bd3 {[%emt 0:03:40]} O-O {[%emt 0:07:54]} 17. Bg5 {[%emt 0:10:06]} Bc5 {[%emt 0:06:42]} 18. Ne4 {[%emt 0:05:16]} Bb6 {[%emt 0:03:48]} 19. Nd6 {[%emt 0:10:00]} Nd4 {[%emt 0:03:21]} 20. Qxe6 {[%emt 0:00:35]} Nxe6 {[%emt 0:00:02]} 21. Be7 {[%emt 0:00:57]} ({White should try} 21. Bxg6 $14 fxg6 22. f3 Nxg5 23. hxg5) 21... Bxd3 $1 $11 {[%emt 0:01:27]} 22. Bxf8 {[%emt 0:03:29]} (22. Rxd3 $5 Rfb8 23. Rd2 $17) 22... Bg6 {[%emt 0:00:04]} 23. Be7 {[%emt 0:00:56]} Bxf2 {[%emt 0:00:06]} 24. Nc4 {[%emt 0:00:52]} f6 {[%emt 0:01:36]} 25. Bb4 {[%emt 0:04:06]} Nd4 {[%emt 0:02:30]} 26. Rd2 {[%emt 0:02:55]} (26. Bc5 $1 $11 {keeps the balance.}) 26... Bg3 $17 {[%emt 0:00:08]} 27. Kb1 {[%emt 0:02:40]} Bf4 {[%emt 0:01:27]} (27... c5 $17 28. Ba5 (28. Bxc5 Nb3 $11) 28... Bf4) 28. Rf2 $15 {[%emt 0:00:18]} Bg3 {[%emt 0:03:15]} (28... Bf7 $15 29. b3 a5) 29. Rd2 $17 {[%emt 0:00:19]} c5 {[%emt 0:06:03]} 30. Bxc5 {[%emt 0:06:51]} (30. Bc3 $142) 30... Nb3 $1 $17 {[%emt 0:00:23]} 31. Be3 {[%emt 0:01:31]} (31. Rd5 Be4 32. Rh3 Bxd5 $19) 31... Rc8 {[%emt 0:04:51]} 32. Rd3 {[%emt 0:00:35]} Rxc4 {[%emt 0:00:53]} 33. Rxb3 {[%emt 0:00:09]} Bxc2+ {[%emt 0:00:02]} (33... Rxh4 34. Rxh4 Bxh4 35. Bxa7 $18) 34. Ka2 {[%emt 0:00:08]} Bxb3+ {[%emt 0:00:10]} 35. Kxb3 {[%emt 0:00:07]} Rc7 {[%emt 0:00:01]} (35... Rxh4 36. Rxh4 Bxh4 37. Bxa7 $11) 36. Rh3 {[%emt 0:01:55]} Be1 {[%emt 0:01:14]} (36... Bf4 $1 $19 {And now ...Bxe3 would win.} 37. Bxf4 exf4) 37. Rh1 $17 {[%emt 0:00:16]} Bg3 {[%emt 0:00:10]} (37... Rb7+ $1 $17 38. Ka2 Bg3) 38. Rh3 $19 {[%emt 0:00:13]} Bf4 $1 {[%emt 0:00:04]} 39. Bf2 {[%emt 0:01:18]} e4 {[%emt 0:00:24]} 40. Rc3 {[%emt 0:00:00]} Rd7 {[%emt 0:00:00]} 41. Rc4 {[%emt 0:03:05]} f5 {[%emt 0:06:53]} 42. Ra4 {[%emt 0:05:15]} Rd3+ {[%emt 0:04:48]} 43. Ka2 $2 {[%emt 0:02:33]} (43. Kc4 {only move.}) 43... Be5 {[%emt 0:02:30]} 44. Bxa7 {[%emt 0:00:47]} e3 {[%emt 0:00:29]} (44... Rd2 $2 45. Rb4 $19) 45. Ra5 {[%emt 0:00:54]} Bf6 {[%emt 0:00:13]} 46. Rxf5 {[%emt 0:02:26]} e2 {[%emt 0:01:32]} (46... Bxh4 47. Re5 Bf6 48. Re8+ (48. Rxh5 e2 $17) (48. Rxe3 Rd2 $14) 48... Kf7 49. Rxe3 $11) 47. Bf2 {[%emt 0:00:07]} Rd1 {[%emt 0:00:09]} 48. Rxh5 $2 {[%emt 0:00:25] [#]} (48. Bg3 {was called for.}) 48... Rf1 $1 $19 {[%emt 0:01:40]} (48... e1=R 49. Bxe1 Rxe1 50. g3 $17) (48... e1=N 49. Rb5 $11) ({Not} 48... e1=B 49. Bxe1 Rxe1 50. Rb5 Bxh4 51. Rb4 $17) 49. Bg3 {[%emt 0:00:06] [#]} g5 $1 {[%emt 0:01:42]} ({Less strong is} 49... e1=B 50. Bxe1 Rxe1 51. a4 $17) ({Weaker is} 49... e1=N 50. a4 $17) (49... e1=Q 50. Bxe1 Rxe1 51. g4 $17) 50. Rxg5+ {[%emt 0:05:35]} (50. hxg5 $142 Be5 51. Bh4) 50... Bxg5 $19 {[%emt 0:00:05]} 51. hxg5 {[%emt 0:00:05]} e1=Q {[%emt 0:02:43]} 52. Bxe1 {[%emt 0:00:07]} Rxe1 {[%emt 0:00:01]} 53. b4 {[%emt 0:01:24]} Kf7 {[%emt 0:00:29]} 54. Kb3 {[%emt 0:00:15]} Ke7 {[%emt 0:00:13]} 55. g6 {[%emt 0:00:30]} Rg1 {[%emt 0:00:09]} 56. Ka4 {[%emt 0:00:26]} Kd7 {[%emt 0:00:05]} 57. Ka5 {[%emt 0:00:10]} Rxg2 {[%emt 0:00:37]} 58. a4 {[%emt 0:00:30]} Rxg6 {[%emt 0:00:06]} 0-1

[Event "Romanian Championship 2024"]
[Site "Eforie Nord"]
[Date "2024.03.01"]
[Round "8.6"]
[White "Bulmaga, Irina"]
[Black "Bonte, Andrei-Mihai"]
[Result "0-1"]
[ECO "C50"]
[WhiteElo "2439"]
[BlackElo "2266"]
[Annotator "TA"]
[PlyCount "88"]
[EventDate "2024.02.24"]
[EventType "swiss"]
[EventCountry "ROU"]
[SourceTitle "playchess.com"]
[Source "ChessBase"]
[SourceQuality "1"]
[TimeControl "40/5400+30:900+30"]

{[%evp 10,88,13,0,8,0,9,0,0,0,-13,-7,0,0,0,31,0,0,7,-116,-123,-143,-146,-152,-156,-147,-154,-156,-163,-167,-155,-159,-167,-183,-181,-177,-176,-182,-162,-185,-185,-187,-184,-184,-176,-190,-189,-222,-212,-208,-216,-219,-222,-246,-256,-252,-220,-231,-218,-301,-301,-329,-333,-325,-360,-369,-333,-439,-421,-549,-520,-594,-558,-654,-650,-758,-739,-773,-765,-746,-706]} 1. e4 {[%emt 0:00:04]} e5 {[%emt 0:01:08]} 2. Nf3 {[%emt 0:00:38]} Nc6 {[%emt 0:00:08]} 3. Bc4 {[%emt 0:01:08]} Bc5 {[%emt 0:00:08]} 4. d3 {[%emt 0:01:12]} Nf6 {[%emt 0:00:15]} 5. Nc3 {[%emt 0:00:23]} O-O {[%emt 0:03:09]} 6. h3 {[%emt 0:01:48]} Re8 {[%emt 0:03:00]} 7. a3 {[%emt 0:01:49]} Nd4 {[%emt 0:14:20]} 8. Bg5 {[%emt 0:14:41]} c6 {[%emt 0:01:40] The position is equal.} 9. Ba2 {[%emt 0:04:23]} h6 {[%emt 0:09:37]} 10. Bh4 {[%emt 0:01:32]} d6 {[%emt 0:00:30]} 11. Na4 {[%emt 0:12:53]} Qa5+ {[%emt 0:18:23]} 12. c3 {[%emt 0:04:23] Bxf6 would now be deadly.} Nxf3+ {[%emt 0:00:33]} 13. gxf3 {[%emt 0:00:33] Strongly threatening Bxf6.} Qd8 {[%emt 0:02:35]} 14. Qd2 {[%emt 0:08:26] [#]} (14. d4 $11 exd4 15. cxd4) 14... Nxe4 $1 $17 {[%emt 0:04:02][%mdl 512] White is now going downhill.} 15. Bxd8 {[%emt 0:02:44]} (15. fxe4 Qxh4) 15... Nxd2 {[%emt 0:00:06] Black is more active.} 16. Kxd2 {[%emt 0:00:04] And now Nxc5 would win.} Rxd8 {[%emt 0:02:03]} 17. Nxc5 {[%emt 0:00:52]} dxc5 {[%emt 0:00:02]} 18. Rae1 {[%emt 0:06:23]} Bf5 {[%emt 0:01:01]} 19. Rxe5 {[%emt 0:00:18]} Bxd3 {[%emt 0:00:16]} 20. Kc1 {[%emt 0:00:34]} c4 {[%emt 0:05:14]} 21. Rhe1 {[%emt 0:06:18]} Kf8 {[%emt 0:01:03]} 22. b3 {[%emt 0:07:34]} cxb3 {[%emt 0:02:28]} 23. Bxb3 {[%emt 0:00:03]} Re8 {[%emt 0:01:19] Dodges Re7} 24. R5e3 {[%emt 0:02:17]} Rad8 {[%emt 0:00:53]} 25. h4 {[%emt 0:00:43]} Bg6 {[%emt 0:01:33]} 26. Bc4 {[%emt 0:06:06]} f6 {[%emt 0:01:11]} 27. a4 {[%emt 0:00:33]} Bf7 {[%emt 0:00:37]} 28. Be2 {[%emt 0:03:54]} a5 {[%emt 0:04:06]} 29. Kc2 {[%emt 0:03:32]} Bg6+ {[%emt 0:03:50]} 30. Kc1 {[%emt 0:00:02]} Rd5 {[%emt 0:00:47]} 31. Rg1 {[%emt 0:03:45]} Bf7 {[%emt 0:00:11]} 32. Re4 {[%emt 0:04:45]} Rde5 {[%emt 0:03:20]} 33. Bd3 {[%emt 0:01:33]} Bd5 {[%emt 0:00:35]} 34. Rxe5 {[%emt 0:00:32]} Rxe5 $19 {[%emt 0:00:07][%mdl 4096] Endgame. KRB-KRB} ({But not} 34... fxe5 35. Be4 $19) 35. f4 {[%emt 0:00:59]} Rh5 {[%emt 0:01:19]} 36. Kd2 {[%emt 0:00:01]} Rxh4 {[%emt 0:00:19]} 37. c4 {[%emt 0:00:04]} Bf7 {[%emt 0:06:30]} 38. Rb1 {[%emt 0:01:10]} Rxf4 {[%emt 0:00:20] Black is clearly winning.} 39. Ke3 {[%emt 0:00:06]} g5 {[%emt 0:00:51]} 40. Rxb7 {[%emt 0:00:00]} Bxc4 {[%emt 0:00:00]} 41. Bg6 {[%emt 0:01:09]} Bd5 {[%emt 0:01:14]} 42. Bc2 {[%emt 0:00:09]} h5 {[%emt 0:02:35]} 43. Ra7 {[%emt 0:05:16]} h4 {[%emt 0:01:25] [#] Threatens to win with ...h3.} 44. Ra8+ {[%emt 0:02:08]} Ke7 {[%emt 0:00:29] Weighted Error Value: White=0.24 (precise) /Black=0.04 (flawless) .  Mistake:       	White=1     	---        Inaccurate:     	White=3     	Black=1      OK:         	White=15    	Black=22     Best:        	White=1     	Black=2      Brilliant:      	---       	Black=1} 0-1

[Event "Romanian Championship 2024"]
[Site "Eforie Nord"]
[Date "2024.03.01"]
[Round "8.7"]
[White "Vilcu, Matei-Stefan"]
[Black "Cosma, Ioan"]
[Result "0-1"]
[ECO "C13"]
[WhiteElo "2176"]
[BlackElo "2316"]
[Annotator "TA"]
[PlyCount "126"]
[EventDate "2024.02.24"]
[EventType "swiss"]
[EventCountry "ROU"]
[SourceTitle "playchess.com"]
[Source "ChessBase"]
[SourceQuality "1"]
[TimeControl "40/5400+30:900+30"]

{[%evp 11,126,16,29,30,25,34,29,9,28,1,6,0,18,9,5,0,7,-38,-26,-46,-31,-86,-30,-26,-27,-46,0,0,0,-33,-5,-17,0,-40,-42,-46,-41,-35,-43,-66,-81,-95,-91,-90,-105,-94,-95,-96,-104,-105,-106,-106,-106,-106,-106,-106,-106,-106,-106,-106,-94,-94,-94,-94,0,-89,-89,-112,-89,-189,-189,-187,-178,-175,-178,-183,-183,-174,-77,-64,-20,-77,-78,-77,-32,-32,-8,-32,-32,-32,-32,-827,-829,-834,-834,-834,0,0,0,0,0,-3858,-1385,-5073,-795,-29976,-29977,-29977,-29978,-29978,-29979,-29983,-29980,-29980,-29981,-29981,-29982]} 1. e4 {[%emt 0:00:02]} e6 {[%emt 0:00:07]} 2. d4 {[%emt 0:00:04]} d5 {[%emt 0:00:07]} 3. Nc3 {[%emt 0:00:04]} Nf6 {[%emt 0:00:09]} 4. Bg5 {[%emt 0:00:37]} dxe4 {[%emt 0:00:10]} 5. Nxe4 {[%emt 0:00:04]} Be7 {[%emt 0:00:09]} 6. Bxf6 {[%emt 0:00:29]} gxf6 {[%emt 0:00:07]} 7. Nc3 {[%emt 0:00:04]} a6 {[%emt 0:06:26]} 8. g3 {[%emt 0:00:58]} Nc6 {[%emt 0:04:22]} 9. Nge2 {[%emt 0:04:28]} e5 {[%emt 0:08:46]} 10. dxe5 {[%emt 0:07:51]} Qxd1+ {[%emt 0:02:32]} 11. Rxd1 {[%emt 0:00:54]} Nxe5 {[%emt 0:06:05]} 12. Bg2 {[%emt 0:03:41] Against Nf3+} c6 {[%emt 0:01:00]} 13. O-O {[%emt 0:02:51]} Bd7 {[%emt 0:06:37]} 14. Nd4 {[%emt 0:14:16]} O-O-O {[%emt 0:02:43]} 15. Be4 {[%emt 0:02:36]} Bc5 {[%emt 0:03:08]} 16. Nce2 {[%emt 0:08:31]} (16. Nf5 $15) 16... Nc4 {[%emt 0:09:17]} (16... Rhe8 $1 $17 {Hoping for ...Bg4.} 17. Nb3 Bf8) 17. b3 $11 {[%emt 0:04:16]} Nd6 {[%emt 0:00:51]} 18. Bg2 {[%emt 0:06:36]} Nf5 {[%emt 0:05:01]} (18... Nb5 $15) 19. c3 {[%emt 0:06:27]} Kc7 {[%emt 0:02:39]} 20. Nf4 {[%emt 0:08:51]} Bc8 {[%emt 0:09:39]} 21. Nf3 {[%emt 0:02:27]} Nd6 {[%emt 0:03:46]} 22. Rfe1 {[%emt 0:03:37]} Nb5 {[%emt 0:02:47]} 23. Ne2 {[%emt 0:09:35]} Rxd1 {[%emt 0:07:51]} 24. Rxd1 {[%emt 0:00:01]} Re8 {[%emt 0:00:08]} 25. Re1 {[%emt 0:03:00]} a5 {[%emt 0:04:24] Black is much more active.} 26. a4 {[%emt 0:03:11] [#]} Nxc3 $1 {[%emt 0:03:15]} 27. Nxc3 {[%emt 0:00:08]} Rxe1+ $1 {[%emt 0:00:04]} 28. Nxe1 {[%emt 0:00:01] Ne4 would now be deadly.} Bb4 {[%emt 0:00:05]} 29. Nd5+ {[%emt 0:04:07]} cxd5 $17 {[%emt 0:00:28][%mdl 4096] Endgame. KBB-KBN} 30. Nd3 {[%emt 0:00:52]} Kd6 {[%emt 0:01:02] And now ...Bf5 would win.} 31. Kf1 {[%emt 0:01:39]} b6 {[%emt 0:01:43]} 32. Ke2 {[%emt 0:01:34]} Ba6 {[%emt 0:00:37]} 33. Ke3 {[%emt 0:00:05]} Bc5+ {[%emt 0:01:25]} 34. Kd2 {[%emt 0:00:27]} h6 {[%emt 0:03:49]} 35. Bf3 {[%emt 0:00:43]} f5 {[%emt 0:01:35]} 36. Bh5 {[%emt 0:00:33]} Ke7 {[%emt 0:01:32]} 37. Bf3 {[%emt 0:00:19]} Kd6 {[%emt 0:00:35]} 38. Bh5 {[%emt 0:00:04]} f6 {[%emt 0:00:03]} 39. Bf3 {[%emt 0:00:39]} Bc8 {[%emt 0:00:37]} 40. Nf4 {[%emt 0:00:00]} (40. Bh5 $17 {might work better.}) 40... Bxf2 $19 {[%emt 0:00:00]} 41. Ke2 {[%emt 0:04:40]} Bg1 {[%emt 0:09:57]} 42. Bxd5 {[%emt 0:02:00]} Ba6+ {[%emt 0:01:12]} (42... Bxh2 43. Kf2 $11) 43. Kf3 {[%emt 0:01:32]} Kc5 {[%emt 0:02:54]} (43... Bxh2 44. Kg2 $16) 44. Be6 {[%emt 0:02:29]} Bd4 {[%emt 0:02:02]} ({Not} 44... Bxh2 45. Kg2 $16 (45. Bxf5 $2 {is the wrong capture.} Bg1 $19)) (44... Kb4 $19 {is more deadly. ...Bb7+ is the strong threat.} 45. Bd5 b5 (45... Bxh2 46. Kg2 $14) 46. axb5 Bxb5) 45. Bxf5 $17 {[%emt 0:04:25]} Be5 {[%emt 0:01:56]} 46. Ke3 {[%emt 0:02:04]} (46. Be6 $11) 46... Bxf4+ {[%emt 0:00:44]} 47. gxf4 {[%emt 0:00:18] KB-KB} Bb7 {[%emt 0:01:13] aiming for ...Bd5.} 48. Be6 {[%emt 0:00:18]} Kb4 {[%emt 0:00:40]} 49. Kd3 {[%emt 0:02:00]} Bf3 {[%emt 0:00:38]} 50. Kd2 {[%emt 0:00:16] Prevents Bd1.} Be4 {[%emt 0:00:16]} 51. Bc4 $2 {[%emt 0:01:02][%mdl 8192] [#]} (51. Bf7 $15) 51... b5 $1 $19 {[%emt 0:01:48][%mdl 512]} 52. Bxb5 {[%emt 0:01:08]} (52. Be6 bxa4) 52... Kxb3 {[%emt 0:00:06]} 53. Ke3 {[%emt 0:00:42] [#]} Bb7 $2 {[%emt 0:00:12]} (53... Bc2 $1 $19 54. Kd2 Bf5) 54. Kd3 {[%emt 0:00:45]} Kb4 {[%emt 0:00:19]} 55. Kd4 {[%emt 0:00:04] Wards off Bd5} Bf3 {[%emt 0:00:07] Strongly threatening ...Bd1.} 56. Be8 $2 {[%emt 0:01:01][%mdl 8192]} (56. f5 $11) 56... Bd1 {[%emt 0:00:32]} 57. Bd7 {[%emt 0:01:56]} Bxa4 {[%emt 0:00:15]} 58. Bxa4 {[%emt 0:00:24]} Kxa4 {[%emt 0:00:04] K3P-KPP} 59. Kc4 {[%emt 0:00:03]} f5 {[%emt 0:00:53]} 60. h3 {[%emt 0:00:06]} h5 {[%emt 0:00:08]} 61. h4 {[%emt 0:00:08]} Ka3 {[%emt 0:00:25]} 62. Kc3 {[%emt 0:00:09]} a4 {[%emt 0:00:06]} 63. Kc2 {[%emt 0:00:19]} Kb4 {[%emt 0:00:06]} 0-1

[Event "Romanian Championship 2024"]
[Site "Eforie Nord"]
[Date "2024.03.01"]
[Round "8.8"]
[White "Stoleriu, George"]
[Black "Prisacaru, Stefan-Emilian"]
[Result "1-0"]
[ECO "C48"]
[WhiteElo "2391"]
[BlackElo "2289"]
[Annotator "TA"]
[PlyCount "133"]
[EventDate "2024.02.24"]
[EventType "swiss"]
[EventCountry "ROU"]
[SourceTitle "playchess.com"]
[Source "ChessBase"]
[SourceQuality "1"]
[TimeControl "40/5400+30:900+30"]

{[%evp 18,133,38,38,48,44,54,26,29,28,50,48,89,95,92,94,109,83,96,104,103,86,118,104,108,115,216,213,186,77,96,111,156,10,42,27,55,22,29,15,14,-22,-18,-23,-23,-14,-16,-29,-43,-31,-14,-26,0,0,0,0,0,0,0,0,0,0,0,0,0,0,26,0,50,0,0,-28,-8,-8,8,8,8,8,8,8,8,8,8,8,95,117,188,200,197,204,199,197,208,183,788,754,613,763,809,930,1200,1210,1912,1710,1918,1781,2335,2079,29969,29970,29979,29980,29980,29981,29981,29982,29981,29980]} 1. e4 {[%emt 0:00:02]} e5 {[%emt 0:00:44]} 2. Nf3 {[%emt 0:00:14]} Nc6 {[%emt 0:00:05]} 3. Nc3 {[%emt 0:00:04]} Nf6 {[%emt 0:00:03]} 4. Bb5 {[%emt 0:00:03]} Nd4 {[%emt 0:01:09]} 5. Bc4 {[%emt 0:02:10]} d6 {[%emt 0:07:28]} 6. Ng5 {[%emt 0:03:47]} Ne6 {[%emt 0:00:23]} 7. Nxe6 {[%emt 0:00:43]} Bxe6 {[%emt 0:00:06]} 8. Bxe6 {[%emt 0:00:03]} fxe6 {[%emt 0:00:04]} 9. d4 {[%emt 0:04:28]} Be7 {[%emt 0:05:13]} 10. dxe5 {[%emt 0:02:50]} dxe5 {[%emt 0:00:05]} 11. Qe2 {[%emt 0:00:03]} O-O {[%emt 0:03:37]} 12. Qc4 {[%emt 0:06:34]} Qd7 {[%emt 0:02:14]} 13. O-O {[%emt 0:00:54]} Bd6 {[%emt 0:03:24]} 14. a4 {[%emt 0:03:34]} Kh8 {[%emt 0:05:32]} 15. f3 {[%emt 0:15:13]} Qe7 {[%emt 0:14:30]} 16. Be3 {[%emt 0:00:51]} Nd7 {[%emt 0:02:58]} 17. Kh1 {[%emt 0:03:35]} a6 {[%emt 0:11:54]} 18. a5 {[%emt 0:06:47]} Rac8 {[%emt 0:18:11]} 19. Rfd1 {[%emt 0:04:11]} Rfd8 {[%emt 0:01:11]} 20. Rd2 {[%emt 0:05:49]} Nb8 {[%emt 0:04:45]} 21. Qb3 {[%emt 0:06:35]} Bb4 {[%emt 0:10:48]} (21... c5 $16 {was called for.}) 22. Rxd8+ $18 {[%emt 0:03:36]} Rxd8 {[%emt 0:00:01]} 23. Ne2 {[%emt 0:00:06]} (23. Bg5 $18 {has better winning chances.} Qxg5 24. Qxb4) 23... Bc5 {[%emt 0:02:27]} 24. Bxc5 {[%emt 0:05:03]} Qxc5 {[%emt 0:00:01]} 25. Nc3 {[%emt 0:00:05]} (25. Qxe6 Qxc2 26. Nc3 Nc6 $11 (26... Qxb2 27. Rd1 $14)) (25. Qxb7 $16 {next Nc3 is good for White.} h6 (25... Qxc2 $2 26. Nc3 $18) 26. h3) 25... Qc6 {[%emt 0:01:33]} 26. h3 {[%emt 0:00:37]} Rd4 {[%emt 0:00:58]} 27. Ne2 {[%emt 0:04:20]} Rd6 {[%emt 0:00:56]} 28. Ra4 {[%emt 0:05:53]} Qb5 {[%emt 0:01:39]} 29. Qxb5 {[%emt 0:00:09]} (29. Rc4 {feels hotter.} Qxb3 30. Rxc7 Rd1+ 31. Kh2) 29... axb5 {[%emt 0:00:03]} 30. Rb4 {[%emt 0:00:03]} c6 {[%emt 0:00:46]} 31. Rb3 {[%emt 0:03:30]} Na6 {[%emt 0:01:51]} ({Don't play} 31... Rd2 32. c4 $16 (32. Rd3 Rxd3 33. cxd3 Kg8 $17)) 32. Rd3 {[%emt 0:00:03]} Rxd3 {[%emt 0:00:32]} 33. cxd3 {[%emt 0:00:02]} Nc5 {[%emt 0:00:39]} 34. d4 {[%emt 0:02:01]} exd4 {[%emt 0:00:45]} 35. Nxd4 {[%emt 0:00:01]} e5 {[%emt 0:00:11]} 36. Nf5 {[%emt 0:01:21]} Nb3 {[%emt 0:00:16]} 37. Nd6 {[%emt 0:00:30]} Nxa5 {[%emt 0:00:05]} 38. Nf7+ {[%emt 0:00:06]} Kg8 {[%emt 0:00:08]} 39. Nxe5 {[%emt 0:00:01]} c5 {[%emt 0:01:42]} 40. Kg1 {[%emt 0:00:00]} b4 {[%emt 0:00:00]} 41. Kf2 {[%emt 0:01:23]} b5 {[%emt 0:06:43]} 42. Ke2 {[%emt 0:02:04]} g5 {[%emt 0:04:08]} ({Better is} 42... c4 $11) 43. g3 {[%emt 0:00:54]} (43. Nd3 $14 Nb7 44. Ke3) 43... c4 $11 {[%emt 0:02:44]} 44. f4 {[%emt 0:11:31]} b3 {[%emt 0:01:19]} 45. Kd2 {[%emt 0:01:10]} b4 {[%emt 0:00:50]} 46. fxg5 {[%emt 0:01:58]} c3+ {[%emt 0:00:07]} 47. Kc1 $1 {[%emt 0:00:34]} Nb7 {[%emt 0:00:51]} 48. Nd3 {[%emt 0:06:12]} Nd6 {[%emt 0:00:20]} 49. e5 {[%emt 0:01:11]} Nc4 {[%emt 0:00:43]} 50. h4 {[%emt 0:00:31]} (50. Nxb4 $2 {is the wrong capture.} Nxb2 51. h4 Nc4 $19) 50... Kf7 {[%emt 0:01:42] [#]} (50... Kf8 $1 $11) 51. h5 $1 $16 {[%emt 0:00:19]} c2 {[%emt 0:01:42]} (51... cxb2+ $16 52. Kb1 Nd2+ 53. Kxb2 Ne4) 52. Nc5 $1 $18 {[%emt 0:03:57]} ({And not} 52. Nxb4 Nxe5 53. Nxc2 bxc2 $11) 52... Nxe5 {[%emt 0:00:44]} 53. Nxb3 {[%emt 0:00:01]} Nf3 {[%emt 0:00:10]} 54. Kxc2 {[%emt 0:00:18]} Nxg5 {[%emt 0:00:04]} 55. Nc5 {[%emt 0:00:15]} Nf3 $2 {[%emt 0:01:16]} (55... h6 56. Kb3 Nh7) 56. Kb3 $18 {[%emt 0:00:02]} Kf6 {[%emt 0:00:27]} 57. Kxb4 {[%emt 0:00:45]} Ne5 {[%emt 0:00:35]} 58. Ne4+ {[%emt 0:00:34]} Kf5 {[%emt 0:00:08]} 59. Nf2 {[%emt 0:00:04]} Kg5 {[%emt 0:00:36]} 60. g4 {[%emt 0:00:01]} Kf4 {[%emt 0:00:24] [#]} 61. Kc5 $1 {[%emt 0:00:51]} Kf3 {[%emt 0:00:09]} 62. Kd5 {[%emt 0:00:06]} Nd7 {[%emt 0:00:55]} 63. g5 {[%emt 0:00:54]} Kxf2 {[%emt 0:00:34]} 64. Kd6 {[%emt 0:00:15]} Nb6 {[%emt 0:00:34]} 65. g6 {[%emt 0:00:49]} hxg6 {[%emt 0:00:22]} 66. hxg6 {[%emt 0:00:04]} Nc4+ {[%emt 0:00:02]} 67. Ke6 {[%emt 0:00:04]} 1-0